fUST/lending_fUST_20240907
["ID","MTS","AMOUNT","RATE_DAILY","PERIOD"]
[337499329,1725719443129,-317.296391,0.000386,14]
[337499330,1725719443140,-187.077189,0.000386,14]
[337499331,1725719443150,-237.591068,0.000386,14]
[337499332,1725719443160,-237.591068,0.000386,14]
[337499333,1725719443170,-187.077189,0.000386,14]
[337499334,1725719443179,-264.773364,0.000386,14]
[337499335,1725719443189,-151.0,0.000386,14]
[337499336,1725719443199,-264.773364,0.000386,14]
[337499337,1725719443209,-216.484805,0.000386,14]
[337499338,1725719443219,-307.125297,0.000386,14]
[337499339,1725719443229,-307.125297,0.000386,14]
[337499340,1725719443241,-193.016733,0.000386,14]
[337499341,1725719443252,-193.016733,0.000386,14]
[337499342,1725719443262,-217.21418,0.000386,14]
[337499343,1725719443271,-217.21418,0.000386,14]
[337499344,1725719443281,-187.319679,0.000386,14]
[337499345,1725719443293,-277.217902,0.000386,14]
[337499346,1725719443302,-277.217902,0.000386,14]
[337499347,1725719443312,-151.0,0.000386,14]
[337499348,1725719443321,-241.580826,0.000386,14]
[337499349,1725719443332,-241.580826,0.000386,14]
[337499350,1725719443342,-230.871181,0.000386,14]
[337499351,1725719443351,-151.0,0.000386,14]
[337499352,1725719443361,-277.5065,0.000386,14]
[337499353,1725719443474,-277.5065,0.000386,14]
[337499354,1725719443485,-236.118201,0.000386,14]
[337499355,1725719443495,-236.118201,0.000386,14]
[337499356,1725719443505,-217.546237,0.000386,14]
[337499357,1725719443515,-217.546237,0.000386,14]
[337499358,1725719443525,-210.40778,0.000386,14]
[337499359,1725719443534,-210.40778,0.000386,14]
[337499360,1725719443545,-151.0,0.000386,14]
[337499361,1725719443555,-173.93698,0.000386,14]
[337499362,1725719443565,-173.93698,0.000386,14]
[337499363,1725719443575,-151.0,0.000386,14]
[337499364,1725719443586,-277.86767,0.000386,14]
[337499365,1725719443596,-267.407128,0.000386,14]
[337499366,1725719443607,-277.86767,0.000386,14]
[337499367,1725719443619,-267.407128,0.000386,14]
[337499368,1725719443628,-206.936946,0.000386,14]
[337499369,1725719443642,-206.936946,0.000386,14]
[337499371,1725719443651,-2111.98459897,0.00038608,2]
[337499373,1725719443661,-151.0,0.0003863,14]
[337499375,1725719443671,-264.773364,0.0003863,14]
[337499377,1725719443682,-151.0,0.0003863,14]
[337499378,1725719443691,-264.773364,0.0003863,14]
[337499379,1725719443701,-307.125297,0.0003863,14]
[337499380,1725719443711,-307.125297,0.0003863,14]
[337499381,1725719443721,-193.016733,0.0003863,14]
[337499382,1725719443731,-193.016733,0.0003863,14]
[337499383,1725719443741,-217.21418,0.0003863,14]
[337499384,1725719443752,-217.21418,0.0003863,14]
[337499385,1725719443762,-277.217902,0.0003863,14]
[337499386,1725719443773,-277.217902,0.0003863,14]
[337499387,1725719443785,-151.0,0.0003863,14]
[337499388,1725719443795,-241.580826,0.0003863,14]
[337499389,1725719443805,-241.580826,0.0003863,14]
[337499390,1725719443815,-151.0,0.0003863,14]
[337499391,1725719443825,-277.5065,0.0003863,14]
[337499392,1725719443834,-277.5065,0.0003863,14]
[337499393,1725719443845,-236.118201,0.0003863,14]
[337499394,1725719443856,-236.118201,0.0003863,14]
[337499395,1725719443866,-217.546237,0.0003863,14]
[337499396,1725719443876,-217.546237,0.0003863,14]
[337499397,1725719443886,-210.40778,0.0003863,14]
[337499398,1725719443895,-210.40778,0.0003863,14]
[337499399,1725719443907,-151.0,0.0003863,14]
[337499400,1725719443916,-173.93698,0.0003863,14]
[337499401,1725719443925,-173.93697,0.0003863,14]
[337499402,1725719443934,-185.70029,0.0003863,14]
[337499403,1725719443944,-277.86767,0.0003863,14]
[337499404,1725719443954,-267.407128,0.0003863,14]
[337499405,1725719443964,-277.867669,0.0003863,14]
[337499406,1725719443974,-267.407128,0.0003863,14]
[337499407,1725719443983,-206.936946,0.0003863,14]
[337499408,1725719443993,-206.93694,0.0003863,14]
[337499409,1725719444003,-500.0,0.000389,16]
[337499410,1725719444013,-151.0,0.00039069,14]
[337499411,1725719444023,-151.0,0.00039069,14]
[337499412,1725719444032,-190.511887,0.00039069,14]
[337499413,1725719444042,-151.0,0.00039069,14]
[337499414,1725719444052,-151.0,0.00039069,14]
[337499415,1725719444062,-157.477846,0.00039069,14]
[337499416,1725719444072,-151.599583,0.00039069,14]
[337499417,1725719444084,-157.477846,0.00039069,14]
[337499418,1725719444094,-151.0,0.00039069,14]
[337499419,1725719444103,-151.0,0.0003909,14]
[337499420,1725719444113,-151.0,0.0003909,14]
[337499421,1725719444123,-151.0,0.0003909,14]
[337499422,1725719444132,-151.0,0.0003909,14]
[337499423,1725719444142,-157.477846,0.0003909,14]
[337499424,1725719444152,-157.477846,0.0003909,14]
[337499425,1725719444162,-151.0,0.0003909,14]
[337499426,1725719444172,-151.0,0.0003909,14]
[337499427,1725719444182,-151.0,0.0003909,14]
[337499428,1725719444192,-151.0,0.0003909,14]
[337499429,1725719444202,-245.0,0.0003909,14]
[337499430,1725719444211,-369.185038,0.0003909,3]
[337499431,1725719444221,-369.185038,0.0003909,3]
[337499432,1725719444230,-369.185038,0.0003909,3]
[337499433,1725719444240,-369.185038,0.0003909,3]
[337499434,1725719444250,-151.0,0.0003909,14]
[337499435,1725719444259,-151.0,0.0003909,14]
[337499436,1725719444270,-483.157182,0.0003909,14]
[337499437,1725719444280,-483.157182,0.0003909,14]
[337499438,1725719444289,-151.0,0.0003909,14]
[337499439,1725719444299,-483.157182,0.0003909,14]
[337499440,1725719444308,-483.157182,0.0003909,14]
[337499441,1725719444317,-317.296391,0.0003909,14]
[337499442,1725719444328,-317.296391,0.0003909,14]
[337499443,1725719444349,-317.296391,0.0003909,14]
[337499444,1725719444359,-317.296391,0.0003909,14]
[337499445,1725719444369,-187.077189,0.0003909,14]
[337499446,1725719444378,-187.077189,0.0003909,14]
[337499447,1725719444389,-237.591068,0.0003909,14]
[337499448,1725719444398,-237.591068,0.0003909,14]
[337499449,1725719444408,-237.591068,0.0003909,14]
[337499450,1725719444419,-1000.0,0.0003909,28]
[337499451,1725719444430,-187.077189,0.0003909,14]
[337499452,1725719444440,-1000.0,0.0003909,28]
[337499453,1725719444450,-187.077189,0.0003909,14]
[337499454,1725719444462,-1000.0,0.0003909,28]
[337499455,1725719444472,-237.591068,0.0003909,14]
[337499456,1725719444481,-1000.0,0.0003909,28]
[337499457,1725719444492,-1000.0,0.0003909,28]
[337499458,1725719444502,-213.397287,0.0003909,28]
[337499459,1725719444512,-264.773364,0.0003909,14]
[337499460,1725719444522,-151.0,0.0003909,14]
[337499461,1725719444532,-264.773364,0.0003909,14]
[337499462,1725719444544,-307.125297,0.0003909,14]
[337499463,1725719444555,-307.12529135,0.0003909,14]
[337499464,1725719444565,-193.016733,0.0003909,14]
[337499465,1725719444575,-193.016737,0.0003909,14]
[337499466,1725719444587,-217.21418,0.0003909,14]
[337499467,1725719444596,-217.214184,0.0003909,14]
[337499468,1725719444606,-277.217902,0.0003909,14]
[337499469,1725719444617,-277.2179,0.0003909,14]
[337499470,1725719444627,-236.118201,0.0003909,14]
[337499471,1725719444637,-236.118197,0.0003909,14]
[337499472,1725719444651,-151.0,0.000391,14]
[337499473,1725719444663,-151.0,0.0003919,14]
[337499474,1725719444675,-151.0,0.0003919,14]
[337499475,1725719444685,-151.0,0.0003919,14]
[337499476,1725719444695,-263.61456,0.0003919,14]
[337499477,1725719444704,-151.0,0.0003919,14]
[337499478,1725719444715,-151.0,0.0003919,14]
[337499479,1725719444726,-151.0,0.0003919,14]
[337499480,1725719444736,-151.0,0.0003919,14]
[337499481,1725719444745,-151.0,0.000392,14]
[337499482,1725719444755,-151.0,0.000392,14]
[337499483,1725719444766,-151.0,0.000392,14]
[337499484,1725719444775,-160.289405,0.000392,14]
[337499485,1725719444785,-160.289405,0.000392,14]
[337499486,1725719444794,-150.112233,0.000392,8]
[337499487,1725719444804,-151.0,0.000392,14]
[337499488,1725719444813,-151.0,0.000392,14]
[337499489,1725719444823,-151.0,0.000392,14]
[337499490,1725719444838,-151.0,0.000392,14]
[337499491,1725719444849,-151.0,0.000392,14]
[337499492,1725719444859,-157.477846,0.000392,14]
[337499493,1725719444868,-157.477846,0.000392,14]
[337499494,1725719444877,-151.0,0.000392,14]
[337499495,1725719444886,-151.0,0.000392,14]
[337499496,1725719444895,-369.185038,0.000392,3]
[337499497,1725719444905,-369.185038,0.000392,3]
[337499498,1725719444915,-301.52038,0.000392,14]
[337499499,1725719444925,-464.16691098,0.000392,14]
[337499500,1725719445030,-18.99027102,0.000392,14]
[337499501,1725719445039,-259.86939,0.000392,14]
[337499502,1725719445049,-483.157182,0.000392,14]
[337499503,1725719445059,-317.296391,0.000392,14]
[337499504,1725719445068,-317.296391,0.000392,14]
[337499505,1725719445078,-187.077189,0.000392,14]
[337499506,1725719445089,-237.591068,0.000392,14]
[337499507,1725719445100,-187.077189,0.000392,14]
[337499508,1725719445110,-237.591068,0.000392,14]
[337499509,1725719445119,-151.0,0.000392,14]
[337499510,1725719445129,-264.773364,0.000392,14]
[337499511,1725719445139,-264.773362,0.000392,14]
[337499512,1725719445150,-151.0,0.000392,14]
[337499513,1725719445159,-277.5065,0.000392,14]
[337499514,1725719445169,-277.506496,0.000392,14]
[337499515,1725719445178,-217.546237,0.000392,14]
[337499516,1725719445188,-217.54624,0.000392,14]
[337499517,1725719445198,-210.40778,0.000392,14]
[337499518,1725719445208,-210.407787,0.000392,14]
[337499519,1725719445218,-151.0,0.000392,14]
[337499520,1725719445228,-151.0,0.00039241,14]
[337499521,1725719445237,-151.0,0.00039241,14]
[337499522,1725719445247,-151.0,0.00039241,14]
[337499523,1725719445257,-151.0,0.00039241,14]
[337499524,1725719445267,-192.711346,0.00039241,14]
[337499525,1725719445276,-151.0,0.0003925,14]
[337499526,1725719445285,-151.0,0.0003925,14]
[337499527,1725719445295,-151.0,0.0003925,14]
[337499528,1725719445304,-160.289405,0.0003925,14]
[337499529,1725719445313,-160.289405,0.0003925,14]
[337499530,1725719445323,-152.049625,0.0003925,14]
[337499531,1725719445334,-151.0,0.0003925,14]
[337499532,1725719445343,-157.477846,0.0003925,14]
[337499533,1725719445353,-157.477846,0.0003925,14]
[337499534,1725719445363,-221.5695,0.0003925,14]
[337499535,1725719445373,-369.185038,0.0003925,3]
[337499536,1725719445382,-369.185038,0.0003925,3]
[337499537,1725719445392,-483.157182,0.0003925,14]
[337499538,1725719445402,-483.157182,0.0003925,14]
[337499539,1725719445413,-317.296391,0.0003925,14]
[337499540,1725719445424,-317.296391,0.0003925,14]
[337499541,1725719445434,-187.077189,0.0003925,14]
[337499542,1725719445444,-237.591068,0.0003925,14]
[337499543,1725719445454,-187.077189,0.0003925,14]
[337499544,1725719445463,-237.591068,0.0003925,14]
[337499545,1725719445473,-306.0,0.00039315,2]
[337499546,1725719445484,-151.0,0.00039341,14]
[337499547,1725719445495,-151.0,0.00039341,14]
[337499548,1725719445505,-289.362565,0.00039341,14]
[337499549,1725719445516,-160.289405,0.00039341,14]
[337499550,1725719445527,-160.289405,0.00039341,14]
[337499552,1725719445537,-151.0,0.00039341,14]
[337499554,1725719445547,-151.0,0.00039341,14]
[337499555,1725719445556,-287.41346326,0.00039379,2]
[337499556,1725719445566,-8308.07756949,0.00039379,2]
[337499558,1725719445575,-151.0,0.0003945,14]
[337499560,1725719445584,-151.0,0.0003945,14]
[337499561,1725719445594,-160.289405,0.0003945,14]
[337499562,1725719445603,-160.289405,0.0003945,14]
[337499563,1725719445612,-151.0,0.0003945,14]
[337499564,1725719445622,-157.477846,0.0003945,14]
[337499565,1725719445633,-157.477846,0.0003945,14]
[337499566,1725719445646,-500.0,0.000395,12]
[337499567,1725719445656,-369.185038,0.000395,3]
[337499568,1725719445666,-369.185038,0.000395,3]
[337499569,1725719445675,-483.157182,0.000395,14]
[337499570,1725719445685,-483.157182,0.000395,14]
[337499571,1725719445694,-317.296391,0.000395,14]
[337499572,1725719445705,-317.296391,0.000395,14]
[337499573,1725719445716,-187.077189,0.000395,14]
[337499574,1725719445726,-237.591068,0.000395,14]
[337499575,1725719445736,-187.077189,0.000395,14]
[337499576,1725719445745,-237.591068,0.000395,14]
[337499577,1725719445755,-151.0,0.0003954,14]
[337499578,1725719445764,-150.112233,0.000396,10]
[337499579,1725719445774,-150.112233,0.000397,8]
[337499580,1725719445783,-152.632692,0.00039726,14]
[337499581,1725719445793,-151.0,0.00039726,14]
[337499582,1725719445802,-160.289405,0.00039726,14]
[337499583,1725719445812,-160.289405,0.00039726,14]
[337499584,1725719445821,-10000.0,0.000398,30]
[337499586,1725719445832,-150.112233,0.000398,5]
[337499588,1725719445841,-151.0,0.000398,14]
[337499589,1725719445851,-157.477846,0.000398,14]
[337499590,1725719445861,-157.477846,0.000398,14]
[337499591,1725719445870,-369.185038,0.000398,3]
[337499592,1725719445880,-369.185033,0.000398,3]
[337499593,1725719445889,-483.157182,0.000398,14]
[337499594,1725719445898,-483.157182,0.000398,14]
[337499595,1725719445908,-317.296391,0.000398,14]
[337499596,1725719445917,-317.296389,0.000398,14]
[337499597,1725719445927,-187.077189,0.000398,14]
[337499598,1725719445937,-237.591068,0.000398,14]
[337499599,1725719445946,-187.077194,0.000398,14]
[337499600,1725719445956,-237.591072,0.000398,14]
[337499601,1725719445965,-150.112233,0.000399,10]
[337499602,1725719445974,-1000.0,0.0004,3]
[337499603,1725719445984,-5938.20766638,0.0004,120]
[337499604,1725719445993,-500.0,0.0004,120]
[337499605,1725719446002,-200.0,0.0004,120]
[337499607,1725719446012,-29743.0,0.0004,120]
[337499608,1725719446021,-151.0,0.0004,14]
[337499609,1725719446031,-160.289405,0.0004,14]
[337499610,1725719446040,-160.289405,0.0004,14]
[337499611,1725719446050,-151.0,0.0004,14]
[337499612,1725719446061,-157.477846,0.0004,14]
[337499613,1725719446071,-157.477848,0.0004,14]
[337499614,1725719446080,-331.9334447,0.0004,2]
[337499615,1725719446090,-153.0,0.00040137,2]
[337499616,1725719446101,-153.0,0.00040137,2]
[337499617,1725719446114,-284.0229609,0.00040137,2]
[337499618,1725719446125,-153.0,0.00040137,2]
[337499619,1725719446134,-153.0,0.00040274,2]
[337499620,1725719446146,-410.1493314,0.00040477,2]
[337499621,1725719446156,-410.1493314,0.00040477,2]
[337499622,1725719446267,-410.1493314,0.00040477,2]
[337499623,1725719446277,-208.1608168,0.00040478,2]
[337499624,1725719446289,-208.1608168,0.00040478,2]
[337499625,1725719446300,-208.1608168,0.00040478,2]
[337499626,1725719446311,-208.1608168,0.00040478,2]
[337499627,1725719446321,-208.1608168,0.00040478,2]
[337499628,1725719446334,-415.9137025,0.00040478,2]
[337499629,1725719446347,-1379.528029,0.00040722,2]
[337499630,1725719446357,-150.058633,0.000408,2]
[337499631,1725719446366,-7301.01843678,0.000408,7]
[337499632,1725719446375,-500000.0,0.00041,90]
[337499633,1725719446385,-1000.0,0.00041,7]
[337499634,1725719446396,-1000.0,0.00041,3]
[337499635,1725719446405,-1000.0,0.00041,120]
[337499636,1725719446414,-531.226707,0.00041096,2]
[337499637,1725719446424,-153.8203,0.000416,10]
[337499638,1725719446433,-567.74,0.0004168,120]
[337499639,1725719446442,-500.0,0.0004168,120]
[337499640,1725719446453,-500.0,0.0004168,120]
[337499641,1725719446462,-500.0,0.0004168,120]
[337499642,1725719446472,-500.0,0.0004168,120]
[337499643,1725719446482,-500.0,0.0004168,120]
[337499644,1725719446491,-500.0,0.0004168,120]
[337499645,1725719446500,-500.0,0.0004168,120]
[337499646,1725719446511,-500.0,0.0004168,120]
[337499647,1725719446522,-500.0,0.0004168,120]
[337499648,1725719446532,-500.0,0.0004168,120]
[337499649,1725719446543,-500.0,0.0004168,120]
[337499650,1725719446553,-500.0,0.0004168,120]
[337499651,1725719446563,-500.0,0.0004168,120]
[337499652,1725719446573,-500.0,0.0004168,120]
[337499653,1725719446582,-500.0,0.0004168,120]
[337499654,1725719446592,-500.0,0.0004168,120]
[337499655,1725719446603,-500.0,0.0004168,120]
[337499656,1725719446615,-500.0,0.0004168,120]
[337499657,1725719446625,-500.0,0.0004168,120]
[337499658,1725719446638,-500.0,0.0004168,120]
[337499659,1725719446651,-595.39,0.0004168,120]
[337499660,1725719446662,-500.0,0.0004168,120]
[337499661,1725719446671,-500.0,0.0004168,120]
[337499662,1725719446682,-500.0,0.0004168,120]
[337499663,1725719446692,-520.27,0.0004168,120]
[337499664,1725719446703,-153.0,0.00041781,2]
[337499665,1725719446712,-153.0,0.00041781,2]
[337499666,1725719446725,-153.0,0.00041781,2]
[337499667,1725719446735,-153.0,0.00041781,2]
[337499668,1725719446745,-531.226707,0.00041781,2]
[337499669,1725719446755,-605.0,0.000419,30]
[337499670,1725719446764,-2000.0,0.00042,2]
[337499671,1725719446776,-151.0,0.00042,120]
[337499672,1725719446786,-579.44,0.00042181,2]
[337499673,1725719446795,-294.254,0.00042181,2]
[337499674,1725719446805,-150.112233,0.000422,10]
[337499675,1725719446814,-509.19538587,0.00042247,120]
[337499676,1725719446824,-2000.0,0.000424,2]
[337499677,1725719446834,-531.226707,0.00042466,2]
[337499678,1725719446845,-151.0,0.00042466,120]
[337499679,1725719446855,-160.289405,0.00042466,120]
[337499680,1725719446864,-160.289405,0.00042466,120]
[337499681,1725719446873,-28447.02059461,0.00042499,2]
[337499682,1725719446887,-44860.92391539,0.00042499,2]
[337499683,1725719446896,-151.0,0.00042499,120]
[337499684,1725719446905,-160.289405,0.00042499,120]
[337499685,1725719446915,-160.289405,0.00042499,120]
[337499686,1725719446924,-1000.0,0.000425,16]
[337499687,1725719446933,-5000.0,0.000425,50]
[337499688,1725719446944,-940.91487133,0.000427,120]
[337499689,1725719446953,-153.0,0.0004274,2]
[337499690,1725719446964,-153.0,0.0004274,2]
[337499691,1725719446973,-153.0,0.0004274,2]
[337499692,1725719446983,-153.0,0.0004274,2]
[337499693,1725719446992,-153.0,0.0004274,2]
[337499694,1725719447002,-150.112233,0.000428,8]
[337499695,1725719447012,-150.203,0.00042983,2]
[337499696,1725719447022,-150.194,0.00042983,2]
[337499697,1725719447031,-24199.0,0.00043,30]
[337499698,1725719447041,-1000.0,0.00043,120]
[337499699,1725719447051,-1000.0,0.00043,3]
[337499700,1725719447061,-151.0,0.00043,120]
[337499701,1725719447070,-160.289405,0.00043,120]
[337499702,1725719447079,-160.289405,0.00043,120]
[337499703,1725719447089,-150.112233,0.00043,9]
[337499704,1725719447098,-151.113,0.00043005,2]
[337499705,1725719447107,-97642.88523679,0.00043164,2]
[337499706,1725719447117,-249.24650942,0.000433,120]
[337499707,1725719447126,-500.0,0.00043315,30]
[337499708,1725719447135,-150.112233,0.000434,9]
[337499709,1725719447144,-150.112233,0.000435,8]
[337499710,1725719447154,-50000.0,0.000436,7]
[337499711,1725719447163,-151.0,0.000436,120]
[337499712,1725719447173,-160.289405,0.000436,120]
[337499713,1725719447182,-160.289397,0.000436,120]
[337499714,1725719447191,-500.0,0.00043835,30]
[337499715,1725719447200,-1000.0,0.00044,120]
[337499716,1725719447210,-2000.0,0.00044,3]
[337499717,1725719447219,-2000.0,0.000441,10]
[337499718,1725719447228,-2000.0,0.000442,6]
[337499719,1725719447238,-308.0532,0.000442,30]
[337499720,1725719447248,-25.45778983,0.00044233,2]
[337499721,1725719447258,-277.047969,0.000443,7]
[337499722,1725719447267,-176753.57457063,0.000445,30]
[337499723,1725719447279,-89627.47673499,0.000445,30]
[337499724,1725719447336,-1399.04031852,0.00038099,2]
[337499725,1725719447346,-131318.8972195,0.000445,30]
[337499726,1725719447361,-67561.86295187,0.000445,30]
[337499727,1725719447601,-1399.04031852,0.00038595,2]
[337499728,1725719447610,-1399.04031852,0.0003909,2]
[337499729,1725719447620,-34738.18852301,0.000445,30]
[337499730,1725719447630,-500.0,0.0004452,33]
[337499731,1725719447640,-490.01325113,0.0004455,2]
[337499732,1725719447653,-10000.0,0.000449,30]
[337499733,1725719447662,-500.0,0.0004499,16]
[337499734,1725719447671,-500.0,0.0004499,16]
[337499735,1725719447682,-50101.0,0.00045,30]
[337499736,1725719447692,-3848.514928,0.00045,120]
[337499737,1725719447702,-500000.0,0.00045,60]
[337499738,1725719447711,-500.0,0.00045,10]
[337499739,1725719447722,-1000.0,0.00045,120]
[337499740,1725719447732,-1500.0,0.00045,18]
[337499741,1725719447742,-1671.54148136,0.00045,120]
[337499742,1725719447751,-523.0,0.00045181,2]
[337499743,1725719447761,-150.0,0.00045181,2]
[337499744,1725719447771,-500.0,0.00045205,36]
[337499745,1725719447781,-495.30008582,0.000455,120]
[337499746,1725719447791,-225.66886318,0.00045644,60]
[337499747,1725719447801,-225.66886318,0.00045836,60]
[337499748,1725719447810,-500.0,0.0004589,39]
[337499749,1725719447820,-150.0,0.00045983,2]
[337499750,1725719447829,-1000.0,0.00046,120]
[337499751,1725719447844,-225.66886318,0.00046027,60]
[337499752,1725719447853,-221.02556621,0.00046219,60]
[337499753,1725719447863,-225.66886318,0.00046219,60]
[337499754,1725719447873,-54195.0,0.000463,35]
[337499755,1725719447882,-11926.32415858,0.00046375,120]
[337499756,1725719447892,-34521.5703641,0.000464,35]
[337499757,1725719447901,-60000.0,0.0004641,35]
[337499758,1725719447911,-221.02556621,0.00046411,60]
[337499759,1725719447920,-225.66886318,0.00046411,60]
[337499760,1725719447929,-50000.0,0.0004642,40]
[337499761,1725719447938,-150.0,0.00046473,10]
[337499762,1725719447947,-51876.999999,0.000465,120]
[337499763,1725719447956,-476.52669061,0.00046575,120]
[337499764,1725719447966,-501.01192776,0.00046575,120]
[337499765,1725719447975,-500.0,0.00046575,120]
[337499766,1725719447985,-500.0,0.00046575,120]
[337499767,1725719447997,-600.18199647,0.00046575,3]
[337499768,1725719448007,-500.0,0.00046575,120]
[337499769,1725719448017,-200.0,0.00046575,120]
[337499770,1725719448027,-500.0,0.00046575,120]
[337499771,1725719448036,-500.0,0.00046575,120]
[337499772,1725719448047,-500.0,0.00046575,120]
[337499773,1725719448057,-501.45094024,0.00046575,120]
[337499774,1725719448067,-500.0,0.00046575,60]
[337499775,1725719448076,-500.0,0.00046575,120]
[337499776,1725719448086,-500.0,0.00046575,120]
[337499777,1725719448096,-634.87210717,0.00046575,120]
[337499778,1725719448106,-500.0,0.00046575,120]
[337499779,1725719448117,-502.08746993,0.00046575,7]
[337499780,1725719448127,-500.0,0.00046575,120]
[337499781,1725719448136,-527.2778115,0.00046575,120]
[337499782,1725719448146,-500.0,0.00046575,120]
[337499783,1725719448155,-500.0,0.00046575,120]
[337499784,1725719448165,-588.00984201,0.00046575,120]
[337499785,1725719448175,-500.0,0.00046575,120]
[337499786,1725719448184,-500.0,0.00046575,120]
[337499787,1725719448195,-502.43983421,0.00046575,120]
[337499788,1725719448205,-500.0,0.00046575,120]
[337499789,1725719448215,-503.15948272,0.00046575,120]
[337499790,1725719448224,-497.45026976,0.00046575,120]
[337499791,1725719448233,-500.0,0.00046575,120]
[337499792,1725719448242,-502.6238922,0.00046575,120]
[337499793,1725719448252,-500.0,0.00046575,120]
[337499794,1725719448261,-500.0,0.00046575,120]
[337499795,1725719448272,-500.0,0.00046575,120]
[337499796,1725719448281,-500.0,0.00046575,120]
[337499797,1725719448290,-500.0,0.00046575,120]
[337499798,1725719448299,-267.23454976,0.00046575,120]
[337499799,1725719448309,-500.0,0.00046575,120]
[337499800,1725719448319,-350.79703185,0.00046575,120]
[337499801,1725719448328,-563.6,0.00046575,120]
[337499802,1725719448338,-500.0,0.00046575,120]
[337499803,1725719448347,-500.0,0.00046575,120]
[337499804,1725719448356,-500.0,0.00046575,120]
[337499805,1725719448366,-500.0,0.00046575,120]
[337499806,1725719448376,-500.0,0.00046575,120]
[337499807,1725719448385,-500.0,0.00046575,120]
[337499808,1725719448395,-500.0,0.00046575,120]
[337499809,1725719448404,-500.0,0.00046575,120]
[337499810,1725719448413,-500.0,0.00046575,120]
[337499811,1725719448422,-500.0,0.00046575,120]
[337499812,1725719448432,-500.0,0.00046575,120]
[337499813,1725719448441,-500.0,0.00046575,120]
[337499814,1725719448450,-500.0,0.00046575,120]
[337499815,1725719448460,-500.0,0.00046575,120]
[337499816,1725719448469,-500.0,0.00046575,120]
[337499817,1725719448478,-500.0,0.00046575,120]
[337499818,1725719448488,-500.0,0.00046575,120]
[337499819,1725719448497,-530.74,0.00046575,120]
[337499820,1725719448506,-500.0,0.00046575,120]
[337499821,1725719448516,-500.0,0.00046575,120]
[337499822,1725719448525,-500.0,0.00046575,120]
[337499823,1725719448534,-500.0,0.00046575,120]
[337499824,1725719448544,-500.0,0.00046575,120]
[337499825,1725719448553,-500.0,0.00046575,120]
[337499826,1725719448562,-500.0,0.00046575,120]
[337499827,1725719448571,-500.0,0.00046575,120]
[337499828,1725719448581,-500.0,0.00046575,120]
[337499829,1725719448591,-500.0,0.00046575,120]
[337499830,1725719448601,-263.23354121,0.00046575,120]
[337499831,1725719448609,-500.0,0.00046575,120]
[337499832,1725719448618,-500.0,0.00046575,120]
[337499833,1725719448628,-500.0,0.00046575,120]
[337499834,1725719448640,-500.0,0.00046575,120]
[337499835,1725719448649,-500.0,0.00046575,120]
[337499836,1725719448658,-500.0,0.00046575,120]
[337499837,1725719448667,-500.0,0.00046575,120]
[337499838,1725719448677,-500.0,0.00046575,120]
[337499839,1725719448686,-500.0,0.00046575,120]